fUSD/lending_fUSD_20260108
["ID","MTS","AMOUNT","RATE_DAILY","PERIOD"]
[401069750,1767901842996,-833.0,0.0001672,2]
[401069751,1767901843006,-162.0,0.0001672,2]
[401069752,1767901843017,-833.0,0.0001672,2]
[401069753,1767901843029,-162.0,0.0001672,2]
[401069754,1767901843039,-401.48234093,0.00016761,2]
[401069755,1767901843048,-2751.0,0.00016767,2]
[401069756,1767901843057,-500.0,0.00016767,2]
[401069757,1767901843067,-1000.0,0.000168,2]
[401069758,1767901843077,-1152.0,0.00016812,2]
[401069759,1767901843087,-2751.0,0.00016822,2]
[401069760,1767901843096,-500.0,0.00016822,2]
[401069761,1767901843105,-557.37957025,0.00016844,2]
[401069762,1767901843116,-1000.0,0.00016851,2]
[401069763,1767901843126,-2751.0,0.00016877,2]
[401069764,1767901843136,-208.22403406,0.00016877,2]
[401069765,1767901843145,-1000.0,0.00016895,2]
[401069766,1767901843154,-469.50438451,0.00016898,2]
[401069767,1767901843163,-1356.0,0.00016912,2]
[401069768,1767901843172,-4609.0,0.00016918,2]
[401069769,1767901843181,-2751.0,0.00016931,2]
[401069770,1767901843192,-2500.0,0.00016954,2]
[401069771,1767901843201,-520.5636209,0.00016954,2]
[401069772,1767901843209,-2500.0,0.00016954,2]
[401069773,1767901843218,-2500.0,0.00016954,2]
[401069774,1767901843229,-500.0,0.00016986,2]
[401069775,1767901843238,-500.0,0.00016986,2]
[401069777,1767901843248,-500.0,0.00016986,2]
[401069779,1767901843257,-500.0,0.00016986,2]
[401069781,1767901843267,-500.0,0.00016986,2]
[401069784,1767901843280,-320.87822696,0.00016986,2]
[401069786,1767901843291,-500.0,0.00016986,2]
[401069788,1767901843300,-500.0,0.00016986,2]
[401069790,1767901843309,-3868.4,0.00016986,2]
[401069792,1767901843318,-500.0,0.00016986,2]
[401069794,1767901843327,-446.86331983,0.00016986,2]
[401069795,1767901843336,-2751.0,0.00016986,2]
[401069796,1767901843345,-250.0,0.00017,2]
[401069797,1767901843354,-4000.0,0.00017,2]
[401069798,1767901843363,-256.33918708,0.00017033,2]
[401069800,1767901843372,-162.0,0.0001704,2]
[401069801,1767901843381,-162.0,0.0001704,2]
[401069802,1767901843390,-833.0,0.0001704,2]
[401069803,1767901843399,-162.0,0.0001704,2]
[401069804,1767901843408,-833.0,0.0001704,2]
[401069805,1767901843417,-833.0,0.0001704,2]
[401069806,1767901843426,-162.0,0.0001704,2]
[401069807,1767901843436,-833.0,0.0001704,2]
[401069808,1767901843446,-833.0,0.0001704,2]
[401069809,1767901843456,-162.0,0.0001704,2]
[401069810,1767901843466,-162.0,0.0001704,2]
[401069811,1767901843477,-833.0,0.0001704,2]
[401069812,1767901843488,-833.0,0.0001704,2]
[401069813,1767901843498,-162.0,0.0001704,2]
[401069814,1767901843507,-833.0,0.0001704,2]
[401069815,1767901843517,-162.0,0.0001704,2]
[401069816,1767901843528,-162.0,0.0001704,2]
[401069817,1767901843538,-162.0,0.0001704,2]
[401069818,1767901843547,-2751.0,0.00017041,2]
[401069819,1767901843556,-482.72,0.00017041,2]
[401069820,1767901843565,-482.72,0.00017041,2]
[401069821,1767901843574,-482.72,0.00017041,2]
[401069822,1767901843583,-1000.0,0.00017046,2]
[401069823,1767901843592,-1356.0,0.00017049,2]
[401069824,1767901843601,-1093.33,0.00017095,2]
[401069825,1767901843612,-500.0,0.00017095,2]
[401069826,1767901843621,-2751.0,0.00017096,2]
[401069827,1767901843630,-151.0,0.00017096,2]
[401069828,1767901843640,-500.0,0.00017098,2]
[401069829,1767901843649,-500.0,0.00017098,2]
[401069830,1767901843659,-409.51044567,0.00017098,2]
[401069831,1767901843668,-620.0,0.00017099,2]
[401069832,1767901843677,-250.0,0.00017099,2]
[401069833,1767901843686,-500.0,0.00017099,2]
[401069834,1767901843695,-250.0,0.00017099,2]
[401069835,1767901843704,-500.0,0.00017099,2]
[401069836,1767901843713,-250.0,0.00017099,2]
[401069837,1767901843983,-500.0,0.00017099,2]
[401069838,1767901844017,-250.0,0.00017099,2]
[401069839,1767901844026,-500.0,0.00017099,2]
[401069840,1767901844036,-250.0,0.00017099,2]
[401069841,1767901844045,-500.0,0.00017099,2]
[401069842,1767901844054,-500.0,0.00017099,2]
[401069843,1767901844064,-250.0,0.00017099,2]
[401069844,1767901844073,-500.0,0.00017099,2]
[401069845,1767901844082,-500.0,0.00017099,2]
[401069846,1767901844091,-250.0,0.00017099,2]
[401069847,1767901844100,-500.0,0.00017099,2]
[401069848,1767901844110,-500.0,0.00017099,2]
[401069849,1767901844119,-500.0,0.00017099,2]
[401069850,1767901844128,-250.0,0.00017099,2]
[401069851,1767901844139,-500.0,0.00017099,2]
[401069852,1767901844148,-500.0,0.00017099,2]
[401069853,1767901844156,-500.0,0.00017099,2]
[401069854,1767901844165,-250.0,0.00017099,2]
[401069855,1767901844174,-500.0,0.00017099,2]
[401069856,1767901844183,-500.0,0.00017099,2]
[401069857,1767901844193,-500.0,0.00017099,2]
[401069858,1767901844202,-250.0,0.00017099,2]
[401069859,1767901844214,-500.0,0.00017099,2]
[401069860,1767901844224,-500.0,0.00017099,2]
[401069861,1767901844233,-250.0,0.00017099,2]
[401069862,1767901844244,-500.0,0.00017099,2]
[401069863,1767901844255,-500.0,0.00017099,2]
[401069864,1767901844266,-500.0,0.00017099,2]
[401069865,1767901844276,-250.0,0.00017099,2]
[401069866,1767901844284,-500.0,0.00017099,2]
[401069867,1767901844293,-250.0,0.00017099,2]
[401069868,1767901844303,-500.0,0.00017099,2]
[401069869,1767901844312,-500.0,0.00017099,2]
[401069870,1767901844321,-500.0,0.00017099,2]
[401069871,1767901844331,-250.0,0.00017099,2]
[401069872,1767901844340,-500.0,0.00017099,2]
[401069873,1767901844349,-260.34840278,0.00017099,2]
[401069874,1767901844358,-500.0,0.00017099,2]
[401069875,1767901844367,-151.0,0.00017099,2]
[401069876,1767901844376,-250.0,0.00017099,2]
[401069877,1767901844385,-1500.0,0.00017099,2]
[401069878,1767901844394,-151.0,0.00017099,2]
[401069879,1767901844404,-500.0,0.00017099,2]
[401069880,1767901844414,-250.0,0.00017099,2]
[401069881,1767901844423,-1500.0,0.00017099,2]
[401069882,1767901844432,-9211.34798985,0.00017099,2]
[401069883,1767901844442,-162.7023203,0.00017099,2]
[401069884,1767901844451,-250.0,0.00017099,2]
[401069885,1767901844459,-500.0,0.00017099,2]
[401069886,1767901844469,-1500.0,0.00017099,2]
[401069887,1767901844478,-394.3952879,0.00017099,2]
[401069888,1767901844487,-1500.0,0.00017099,2]
[401069889,1767901844495,-1500.0,0.00017099,2]
[401069890,1767901844505,-1500.0,0.00017099,2]
[401069891,1767901844514,-1500.0,0.00017099,2]
[401069892,1767901844522,-553.64373807,0.00017099,2]
[401069893,1767901844535,-151.0,0.00017099,2]
[401069894,1767901844544,-500.0,0.00017099,2]
[401069895,1767901844553,-500.0,0.00017099,2]
[401069896,1767901844562,-1500.0,0.00017099,2]
[401069897,1767901844571,-500.0,0.00017099,2]
[401069898,1767901844582,-201.93286099,0.00017099,2]
[401069899,1767901844591,-322.6107,0.00017099,2]
[401069900,1767901844600,-500.0,0.00017099,2]
[401069901,1767901844609,-1500.0,0.00017099,2]
[401069902,1767901844618,-500.0,0.00017099,2]
[401069903,1767901844627,-500.0,0.00017099,2]
[401069904,1767901844635,-1500.0,0.00017099,2]
[401069905,1767901844645,-500.0,0.00017099,2]
[401069906,1767901844654,-500.0,0.00017099,2]
[401069907,1767901844663,-500.0,0.00017099,2]
[401069908,1767901844672,-500.0,0.00017099,2]
[401069909,1767901844681,-500.0,0.00017099,2]
[401069910,1767901844690,-500.0,0.00017099,2]
[401069911,1767901844699,-1500.0,0.00017099,2]
[401069912,1767901844708,-500.0,0.00017099,2]
[401069913,1767901844718,-500.0,0.00017099,2]
[401069914,1767901844727,-1500.0,0.00017099,2]
[401069915,1767901844736,-500.0,0.00017099,2]
[401069916,1767901844745,-500.0,0.00017099,2]
[401069917,1767901844753,-500.0,0.00017099,2]
[401069918,1767901844762,-500.0,0.00017099,2]
[401069919,1767901844771,-500.0,0.00017099,2]
[401069920,1767901844780,-500.0,0.00017099,2]
[401069921,1767901844789,-500.0,0.00017099,2]
[401069922,1767901844798,-500.0,0.00017099,2]
[401069923,1767901844807,-2000.0,0.00017099,2]
[401069924,1767901844816,-500.0,0.00017099,2]
[401069925,1767901844826,-2000.0,0.00017099,2]
[401069926,1767901844836,-500.0,0.00017099,2]
[401069927,1767901844846,-2000.0,0.00017099,2]
[401069928,1767901844855,-500.0,0.00017099,2]
[401069929,1767901844865,-2000.0,0.00017099,2]
[401069930,1767901844874,-500.0,0.00017099,2]
[401069931,1767901844883,-2000.0,0.00017099,2]
[401069932,1767901844892,-578.20924308,0.00017099,2]
[401069933,1767901844901,-500.0,0.00017099,2]
[401069934,1767901844911,-2000.0,0.00017099,2]
[401069936,1767901844923,-500.0,0.00017099,2]
[401069938,1767901844931,-2000.0,0.00017099,2]
[401069940,1767901844940,-500.0,0.00017099,2]
[401069942,1767901844949,-2000.0,0.00017099,2]
[401069944,1767901844959,-151.0,0.00017099,2]
[401069946,1767901844969,-2000.0,0.00017099,2]
[401069948,1767901844978,-2000.0,0.00017099,2]
[401069950,1767901844988,-300.0,0.00017099,2]
[401069952,1767901844998,-2000.0,0.00017099,2]
[401069954,1767901845007,-2000.0,0.00017099,2]
[401069955,1767901845016,-695.39793187,0.00017099,2]
[401069957,1767901845026,-153.80351225,0.000171,2]
[401069958,1767901845035,-1000.0,0.000171,2]
[401069959,1767901845044,-150.0,0.0001711,2]
[401069960,1767901845053,-213.0,0.0001711,2]
[401069961,1767901845063,-302.46,0.0001711,2]
[401069962,1767901845072,-350.94134188,0.0001711,2]
[401069963,1767901845081,-1000.0,0.00017112,2]
[401069964,1767901845090,-1000.0,0.00017122,2]
[401069965,1767901845099,-157.72323008,0.00017148,2]
[401069966,1767901845108,-2751.0,0.00017151,2]
[401069967,1767901845117,-585.83,0.00017153,2]
[401069968,1767901845126,-1316.20759869,0.00017154,2]
[401069969,1767901845135,-200.0,0.00017174,2]
[401069970,1767901845144,-13072.17915059,0.00017204,2]
[401069971,1767901845154,-2751.0,0.00017205,2]
[401069972,1767901845163,-1000.0,0.00017244,2]
[401069973,1767901845172,-3868.4,0.0001726,2]
[401069974,1767901845181,-2751.0,0.0001726,2]
[401069975,1767901845190,-1000.0,0.00017269,2]
[401069976,1767901845199,-1000.0,0.00017297,2]
[401069977,1767901845208,-1364.91486209,0.00017297,2]
[401069978,1767901845217,-1000.0,0.00017309,2]
[401069979,1767901845226,-2751.0,0.00017315,2]
[401069980,1767901845235,-1000.0,0.00017336,2]
[401069981,1767901845244,-1535.0,0.00017352,2]
[401069982,1767901845254,-833.0,0.0001736,2]
[401069983,1767901845263,-833.0,0.0001736,2]
[401069984,1767901845272,-162.0,0.0001736,2]
[401069985,1767901845282,-833.0,0.0001736,2]
[401069986,1767901845291,-833.0,0.0001736,2]
[401069987,1767901845300,-162.0,0.0001736,2]
[401069988,1767901845309,-162.0,0.0001736,2]
[401069989,1767901845318,-162.0,0.0001736,2]
[401069990,1767901845329,-833.0,0.0001736,2]
[401069991,1767901845339,-2751.0,0.0001737,2]
[401069992,1767901845348,-1535.0,0.0001738,2]
[401069993,1767901845357,-2751.0,0.00017424,2]
[401069994,1767901845366,-1000.0,0.0001744,2]
[401069995,1767901845375,-168.52,0.00017454,2]
[401069996,1767901845384,-1000.0,0.00017456,2]
[401069997,1767901845393,-1000.0,0.00017471,2]
[401069998,1767901845402,-2770.75099502,0.00017479,2]
[401069999,1767901845411,-153.80351225,0.000175,2]
[401070000,1767901845420,-3000.0,0.00017502,2]
[401070001,1767901845429,-3000.0,0.00017502,2]
[401070002,1767901845437,-3000.0,0.00017502,2]
[401070003,1767901845447,-1000.0,0.00017518,2]
[401070004,1767901845456,-3868.4,0.00017534,2]
[401070005,1767901845465,-1042.30773041,0.00017534,2]
[401070006,1767901845474,-1000.0,0.00017577,2]
[401070007,1767901845483,-1000.0,0.00017596,2]
[401070008,1767901845492,-1000.0,0.00017605,2]
[401070010,1767901845501,-1000.0,0.00017611,2]
[401070011,1767901845511,-1000.0,0.00017615,2]
[401070012,1767901845521,-1000.0,0.00017619,2]
[401070013,1767901845531,-1000.0,0.00017632,2]
[401070014,1767901845540,-1000.0,0.00017632,2]
[401070015,1767901845550,-14991.4518794,0.0001764,2]
[401070016,1767901845560,-574.12855637,0.00017647,2]
[401070017,1767901845569,-151.0,0.00017647,2]
[401070018,1767901845579,-293.26916709,0.00017647,2]
[401070019,1767901845588,-151.0,0.00017647,2]
[401070020,1767901845597,-311.1,0.00017647,2]
[401070021,1767901845607,-1000.0,0.00017648,2]
[401070022,1767901845615,-1000.0,0.00017673,2]
[401070023,1767901845625,-162.0,0.0001768,2]
[401070024,1767901845635,-833.0,0.0001768,2]
[401070025,1767901845646,-162.0,0.0001768,2]
[401070026,1767901845655,-162.0,0.0001768,2]
[401070027,1767901845664,-833.0,0.0001768,2]
[401070028,1767901845673,-833.0,0.0001768,2]
[401070029,1767901845682,-833.0,0.0001768,2]
[401070030,1767901845691,-833.0,0.0001768,2]
[401070031,1767901845701,-833.0,0.0001768,2]
[401070032,1767901845710,-162.0,0.0001768,2]
[401070033,1767901845719,-833.0,0.0001768,2]
[401070034,1767901845728,-162.0,0.0001768,2]
[401070035,1767901845737,-162.0,0.0001768,2]
[401070036,1767901845747,-833.0,0.0001768,2]
[401070037,1767901845757,-163.0,0.0001768,2]
[401070038,1767901845766,-157.72323008,0.00017684,2]
[401070039,1767901845778,-25000.0,0.00017689,3]
[401070040,1767901845787,-25000.0,0.00017698,3]
[401070041,1767901845797,-4280.56502844,0.000177,2]
[401070042,1767901845806,-1000.0,0.000177,2]
[401070043,1767901845815,-1093.33,0.00017706,2]
[401070044,1767901845825,-500.0,0.00017706,2]
[401070045,1767901845835,-25000.0,0.00017706,3]
[401070046,1767901845845,-1000.0,0.00017709,2]
[401070047,1767901845855,-25000.0,0.00017715,3]
[401070048,1767901845864,-25000.0,0.00017724,3]
[401070049,1767901845874,-1000.0,0.00017733,2]
[401070050,1767901845883,-1000.0,0.00017759,2]
[401070051,1767901845893,-25000.0,0.00017759,3]
[401070052,1767901845902,-25000.0,0.00017768,3]
[401070053,1767901845912,-25000.0,0.00017777,3]
[401070054,1767901845926,-25000.0,0.00017786,3]
[401070055,1767901845935,-1535.0,0.00017791,2]
[401070056,1767901845944,-25000.0,0.00017794,3]
[401070057,1767901845953,-2000.0,0.000178,2]
[401070058,1767901845963,-25000.0,0.00017803,3]
[401070059,1767901845973,-1000.0,0.00017806,2]
[401070060,1767901845983,-3868.4,0.00017808,2]
[401070061,1767901845994,-500.0,0.00017811,2]
[401070062,1767901846004,-500.0,0.00017811,2]
[401070063,1767901846013,-25000.0,0.00017812,3]
[401070065,1767901846022,-1000.0,0.00017817,2]
[401070067,1767901846031,-2010.72441,0.0001782,2]
[401070069,1767901846041,-2010.72441,0.0001782,2]
[401070071,1767901846050,-2010.72441,0.0001782,2]
[401070073,1767901846060,-2010.72441,0.0001782,2]
[401070075,1767901846069,-758.96088212,0.0001782,2]
[401070077,1767901846078,-25000.0,0.00017821,3]
[401070078,1767901846087,-1000.0,0.00017824,2]
[401070079,1767901846096,-25000.0,0.0001783,3]
[401070080,1767901846106,-2563.74337966,0.0001783,2]
[401070081,1767901846115,-1000.0,0.00017835,2]
[401070082,1767901846124,-893.22555293,0.00017837,2]
[401070083,1767901846133,-25000.0,0.00017838,3]
[401070084,1767901846142,-1000.0,0.00017842,2]
[401070085,1767901846152,-25000.0,0.00017847,3]
[401070086,1767901846162,-2000.0,0.00017855,2]
[401070087,1767901846171,-200.0,0.00017855,2]
[401070088,1767901846180,-585.83,0.00017855,2]
[401070089,1767901846189,-200.0,0.00017856,2]
[401070090,1767901846199,-2000.0,0.00017856,2]
[401070091,1767901846208,-200.0,0.00017856,2]
[401070092,1767901846218,-200.0,0.00017856,2]
[401070093,1767901846227,-25000.0,0.00017856,3]
[401070094,1767901846236,-25000.0,0.00017865,3]
[401070095,1767901846245,-661.47,0.00017871,2]
[401070096,1767901846255,-661.47,0.00017871,2]
[401070097,1767901846264,-661.47,0.00017871,2]
[401070098,1767901846273,-661.47,0.00017871,2]
[401070099,1767901846283,-25000.0,0.00017874,3]
[401070100,1767901846292,-386.45682453,0.00017882,2]
[401070101,1767901846302,-1535.0,0.00017882,2]
[401070102,1767901846311,-25000.0,0.00017882,3]
[401070103,1767901846322,-25000.0,0.00017891,3]
[401070104,1767901846333,-408.36641282,0.00017898,2]
[401070105,1767901846343,-1000.0,0.00017899,2]
[401070106,1767901846352,-408.3664128,0.00017899,2]
[401070107,1767901846363,-557.37957025,0.000179,2]
[401070108,1767901846372,-1000.0,0.000179,2]
[401070109,1767901846383,-10000.0,0.000179,2]
[401070110,1767901846393,-3087.833,0.000179,2]
[401070111,1767901846403,-25000.0,0.000179,3]
[401070112,1767901846413,-13072.17915059,0.000179,2]
[401070113,1767901846423,-256.33918708,0.000179,2]
[401070114,1767901846434,-211.30647502,0.000179,2]
[401070115,1767901846443,-408.3664128,0.000179,2]
[401070116,1767901846452,-211.88264941,0.000179,2]
[401070117,1767901846461,-306.94008536,0.000179,2]
[401070118,1767901846472,-190.04272048,0.000179,3]
[401070119,1767901846482,-16362.0,0.000179,2]
[401070120,1767901846492,-1535.0,0.00017928,2]
[401070121,1767901846501,-1000.0,0.00017946,2]
[401070122,1767901846510,-482.72,0.00017948,2]
[401070123,1767901846520,-150.0,0.00017968,2]
[401070124,1767901846530,-500.0,0.0001797,2]
[401070125,1767901846540,-1000.0,0.0001797,2]
[401070126,1767901846549,-500.0,0.0001797,2]
[401070127,1767901846558,-1000.0,0.0001797,2]
[401070128,1767901846567,-500.0,0.0001797,2]
[401070129,1767901846576,-1000.0,0.0001797,2]
[401070130,1767901846587,-500.0,0.0001797,2]
[401070131,1767901846596,-1000.0,0.0001797,2]
[401070132,1767901846606,-1000.0,0.0001797,2]
[401070133,1767901846616,-500.0,0.0001797,2]
[401070134,1767901846625,-1000.0,0.0001797,2]
[401070135,1767901846634,-584.41347442,0.0001797,2]
[401070136,1767901846644,-1000.0,0.0001797,2]
[401070137,1767901846654,-1446.54474908,0.0001797,2]
[401070138,1767901846664,-1000.0,0.0001797,2]
[401070139,1767901846674,-8200.0,0.00017973,2]
[401070140,1767901846683,-356.0,0.00017973,2]
[401070141,1767901846694,-7567.0,0.00017973,2]
[401070142,1767901846706,-500.17178809,0.00017973,2]
[401070143,1767901846719,-513.02244381,0.00017973,2]
[401070144,1767901846731,-426.73386812,0.00017973,2]
[401070145,1767901846742,-504.24318867,0.00017973,2]
[401070146,1767901846751,-500.0,0.00017973,2]
[401070147,1767901846762,-500.0,0.00017973,2]
[401070148,1767901846771,-150.0,0.00017973,2]
[401070149,1767901846781,-500.0,0.00017973,2]
[401070150,1767901846791,-150.49880534,0.00017973,2]
[401070151,1767901846801,-160.89060159,0.00017973,2]
[401070152,1767901846810,-159.904,0.00017973,2]
[401070153,1767901846821,-504.45710441,0.00017973,2]
[401070154,1767901846830,-500.0,0.00017973,2]
[401070155,1767901846840,-500.0,0.00017973,2]
[401070156,1767901846862,-500.0,0.00017973,2]
[401070157,1767901846882,-500.0,0.00017973,2]
[401070158,1767901846901,-568.48476984,0.00017973,2]
[401070159,1767901846921,-500.0,0.00017973,2]
[401070160,1767901846942,-500.0,0.00017973,2]
[401070161,1767901846956,-500.0,0.00017973,2]
[401070162,1767901846966,-500.0,0.00017973,2]
[401070163,1767901846975,-500.0,0.00017973,2]
[401070164,1767901846984,-501.18870733,0.00017973,2]
[401070165,1767901846993,-500.0,0.00017973,2]
[401070166,1767901847003,-160.81509317,0.00017973,2]
[401070167,1767901847013,-500.0,0.00017973,2]
[401070168,1767901847022,-500.0,0.00017973,2]
[401070169,1767901847032,-385.16009683,0.00017973,2]
[401070170,1767901847042,-500.0,0.00017973,2]
[401070171,1767901847052,-500.0,0.00017973,2]
[401070172,1767901847061,-500.0,0.00017973,2]
[401070173,1767901847071,-500.0,0.00017973,2]
[401070174,1767901847080,-893.22555293,0.0001799,2]
[401070175,1767901847090,-893.22555293,0.0001799,2]
[401070176,1767901847099,-234.0,0.00017991,2]
[401070177,1767901847109,-1000.0,0.00017992,2]
[401070178,1767901847120,-151.0,0.00017995,2]
[401070179,1767901847129,-151.0,0.00017995,2]
[401070180,1767901847138,-1093.33,0.00017997,2]
[401070181,1767901847148,-1093.33,0.00017997,2]
[401070182,1767901847157,-1093.33,0.00017997,2]
[401070183,1767901847167,-1093.33,0.00017997,2]
[401070184,1767901847176,-500.0,0.00017997,2]
[401070185,1767901847185,-500.0,0.00017997,2]
[401070186,1767901847194,-500.0,0.00017997,2]
[401070187,1767901847203,-500.0,0.00017997,2]
[401070188,1767901847212,-1000.0,0.00017997,2]
[401070189,1767901847222,-585.83,0.00017997,2]
[401070190,1767901847231,-585.83,0.00017997,2]
[401070191,1767901847240,-585.83,0.00017997,2]
[401070192,1767901847250,-585.83,0.00017997,2]
[401070193,1767901847259,-200.150002,0.00017997,2]
[401070194,1767901847270,-3692.8378902,0.00017998,2]
[401070195,1767901847280,-814594.51397,0.00017998,2]
[401070196,1767901847289,-156.73208,0.00017998,2]
[401070197,1767901847298,-151.0,0.00017998,2]
[401070198,1767901847309,-151.0,0.00017998,2]
[401070199,1767901847318,-138477.6322509,0.00017998,2]
[401070200,1767901847327,-151.0,0.00017998,2]
[401070201,1767901847336,-151.0,0.00017998,2]
[401070202,1767901847347,-167.184503,0.00017998,2]
[401070203,1767901847356,-151.0,0.00017998,2]
[401070204,1767901847365,-151.0,0.00017998,2]
[401070205,1767901847374,-151.0,0.00017998,2]
[401070206,1767901847384,-172.930412,0.00017998,2]
[401070207,1767901847393,-151.0,0.00017998,2]
[401070208,1767901847402,-970.5421603,0.00017998,2]
[401070209,1767901847411,-151.0,0.00017998,2]
[401070210,1767901847422,-151.0,0.00017998,2]
[401070211,1767901847431,-192.247948,0.00017998,2]
[401070212,1767901847441,-151.0,0.00017998,2]
[401070213,1767901847450,-151.0,0.00017998,2]
[401070214,1767901847459,-151.0,0.00017998,2]
[401070215,1767901847468,-151.0,0.00017998,2]
[401070216,1767901847480,-151.0,0.00017998,2]
[401070217,1767901847489,-196.054169,0.00017998,2]
[401070218,1767901847498,-151.0,0.00017998,2]
[401070219,1767901847508,-196.054169,0.00017998,2]
[401070220,1767901847517,-151.0,0.00017998,2]
[401070221,1767901847527,-196.054169,0.00017998,2]
[401070222,1767901847536,-196.054169,0.00017998,2]
[401070223,1767901847545,-218.808881,0.00017998,2]
[401070224,1767901847555,-218.808881,0.00017998,2]
[401070225,1767901847564,-218.808881,0.00017998,2]
[401070226,1767901847574,-218.808881,0.00017998,2]
[401070227,1767901847584,-374.563037,0.00017998,2]
[401070228,1767901847594,-374.563037,0.00017998,2]
[401070229,1767901847605,-374.563037,0.00017998,2]
[401070230,1767901847614,-374.563037,0.00017998,2]
[401070231,1767901847624,-151.0,0.00017998,2]
[401070232,1767901847636,-151.0,0.00017998,2]
[401070233,1767901847646,-151.0,0.00017998,2]
[401070234,1767901847658,-151.0,0.00017998,2]
[401070235,1767901847668,-151.0,0.00017998,2]
[401070236,1767901847679,-736.3025722,0.00017998,2]
[401070237,1767901847689,-151.0,0.00017998,2]
[401070238,1767901847700,-150.0,0.00017999,2]
[401070239,1767901847710,-300.0,0.00017999,2]
[401070240,1767901847719,-666.0,0.00017999,2]
[401070241,1767901847728,-303.86088657,0.00017999,2]
[401070242,1767901847738,-1214.22810272,0.00017999,2]
[401070243,1767901847747,-300.0,0.00017999,2]
[401070244,1767901847758,-300.0,0.00017999,2]
[401070245,1767901847769,-666.0,0.00017999,2]
[401070246,1767901847779,-1093.33,0.00017999,2]
[401070247,1767901847788,-1093.33,0.00017999,2]
[401070248,1767901847798,-1093.33,0.00017999,2]
[401070249,1767901847808,-1093.33,0.00017999,2]
[401070250,1767901847818,-1093.33,0.00017999,2]
[401070251,1767901847827,-1093.33,0.00017999,2]
[401070252,1767901847837,-1093.33,0.00017999,2]
[401070253,1767901847846,-1093.33,0.00017999,2]
[401070254,1767901847855,-1093.33,0.00017999,2]
[401070255,1767901847865,-1093.33,0.00017999,2]
[401070256,1767901847874,-1093.33,0.00017999,2]
[401070257,1767901847884,-1093.3877512,0.00017999,2]
[401070258,1767901847893,-500.0,0.00017999,2]
[401070259,1767901847902,-500.0,0.00017999,2]
[401070260,1767901847912,-500.0,0.00017999,2]
[401070261,1767901847924,-500.0,0.00017999,2]
[401070262,1767901847933,-577.6208976,0.00017999,2]
[401070263,1767901847943,-300.0,0.00017999,2]
[401070264,1767901847952,-666.0,0.00017999,2]
[401070265,1767901847962,-300.0,0.00017999,2]
[401070266,1767901847971,-585.83,0.00017999,2]
[401070267,1767901847981,-585.83,0.00017999,2]
[401070268,1767901847991,-585.83,0.00017999,2]
[401070269,1767901848001,-585.83,0.00017999,2]
[401070270,1767901848225,-585.83,0.00017999,2]
[401070271,1767901848237,-585.83,0.00017999,2]
[401070272,1767901848247,-585.83,0.00017999,2]
[401070273,1767901848257,-585.83,0.00017999,2]
[401070274,1767901848267,-585.83,0.00017999,2]
[401070275,1767901848276,-585.83,0.00017999,2]
[401070276,1767901848285,-585.98722753,0.00017999,2]
[401070277,1767901848295,-300.0,0.00017999,2]
[401070278,1767901848304,-300.0,0.00017999,2]
[401070279,1767901848314,-666.0,0.00017999,2]